fUST/lending_fUST_20240824
["ID","MTS","AMOUNT","RATE_DAILY","PERIOD"]
[335812673,1724505040698,-209.5230276,0.00013698,2]
[335812675,1724505040707,-500.0,0.00013698,2]
[335812676,1724505040716,-500.0,0.00013698,2]
[335812677,1724505040725,-500.0,0.00013698,2]
[335812678,1724505040734,-500.0,0.00013698,2]
[335812679,1724505040744,-364.70815553,0.00013698,2]
[335812680,1724505040753,-500.0,0.00013698,2]
[335812682,1724505040763,-500.0,0.00013698,2]
[335812683,1724505040772,-371.64930465,0.00013698,2]
[335812684,1724505040781,-500.0,0.00013698,2]
[335812685,1724505040791,-500.0,0.00013698,2]
[335812686,1724505040801,-504.53621322,0.00013698,2]
[335812687,1724505040810,-505.53699037,0.00013698,2]
[335812688,1724505040822,-291.86163997,0.00013698,2]
[335812689,1724505040831,-501.33411364,0.00013698,2]
[335812690,1724505040840,-500.0,0.00013698,2]
[335812691,1724505040849,-500.0,0.00013698,2]
[335812692,1724505040859,-513.24810199,0.00013698,2]
[335812693,1724505040869,-500.0,0.00013698,2]
[335812694,1724505040879,-591.82,0.00013698,2]
[335812695,1724505040888,-560.25,0.00013698,2]
[335812696,1724505040897,-500.0,0.00013698,2]
[335812697,1724505040907,-297.52832699,0.00013698,2]
[335812698,1724505040917,-571.02,0.00013698,2]
[335812700,1724505040927,-500.0,0.00013698,2]
[335812702,1724505040937,-864.78,0.00013698,2]
[335812704,1724505040947,-500.0,0.00013698,2]
[335812706,1724505040958,-500.0,0.00013698,2]
[335812707,1724505040968,-500.0,0.00013698,2]
[335812709,1724505040977,-942.05,0.00013698,2]
[335812710,1724505040987,-500.0,0.00013698,2]
[335812712,1724505040996,-500.0,0.00013698,2]
[335812713,1724505041005,-500.0,0.00013698,2]
[335812714,1724505041015,-286.92579361,0.00013698,2]
[335812715,1724505041024,-500.0,0.00013698,2]
[335812716,1724505041040,-500.0,0.00013698,2]
[335812717,1724505041051,-500.0,0.00013698,2]
[335812718,1724505041062,-500.0,0.00013698,2]
[335812719,1724505041071,-500.0,0.00013698,2]
[335812720,1724505041082,-500.0,0.00013698,2]
[335812721,1724505041093,-500.0,0.00013698,2]
[335812722,1724505041102,-500.0,0.00013698,2]
[335812723,1724505041115,-566.98,0.00013698,2]
[335812724,1724505041127,-601.53830752,0.00013698,2]
[335812725,1724505041138,-500.0,0.00013698,2]
[335812726,1724505041148,-285.92282374,0.00013698,2]
[335812727,1724505041157,-500.0,0.00013698,2]
[335812728,1724505041167,-705.78,0.00013698,2]
[335812729,1724505041183,-690.27,0.00013698,2]
[335812730,1724505041192,-500.0,0.00013698,2]
[335812731,1724505041201,-500.0,0.00013698,2]
[335812732,1724505041211,-500.0,0.00013698,2]
[335812733,1724505041220,-500.0,0.00013698,2]
[335812734,1724505041233,-317.59539575,0.00013698,2]
[335812735,1724505041242,-500.0,0.00013698,2]
[335812736,1724505041252,-500.0,0.00013698,2]
[335812737,1724505041263,-500.0,0.00013698,2]
[335812738,1724505041273,-500.0,0.00013698,2]
[335812739,1724505041283,-500.0,0.00013698,2]
[335812740,1724505041292,-2199.63,0.00013698,2]
[335812741,1724505041302,-500.0,0.00013698,2]
[335812742,1724505041311,-517.68,0.00013698,2]
[335812743,1724505041320,-500.0,0.00013698,2]
[335812744,1724505041329,-520.07231296,0.00013698,2]
[335812745,1724505041339,-500.0,0.00013698,2]
[335812746,1724505041348,-500.0,0.00013698,2]
[335812747,1724505041357,-500.0,0.00013698,2]
[335812748,1724505041367,-500.0,0.00013698,2]
[335812749,1724505041376,-500.0,0.00013698,2]
[335812750,1724505041386,-500.0,0.00013698,2]
[335812751,1724505041395,-500.0,0.00013698,2]
[335812752,1724505041405,-500.0,0.00013698,2]
[335812753,1724505041414,-720.16,0.00013698,2]
[335812754,1724505041424,-500.0,0.00013698,2]
[335812755,1724505041434,-500.0,0.00013698,2]
[335812756,1724505041443,-500.0,0.00013698,2]
[335812757,1724505041452,-593.57,0.00013698,2]
[335812758,1724505041461,-500.0,0.00013698,2]
[335812759,1724505041471,-500.0,0.00013698,2]
[335812760,1724505041482,-500.0,0.00013698,2]
[335812761,1724505041491,-500.0,0.00013698,2]
[335812762,1724505041501,-500.0,0.00013698,2]
[335812763,1724505041513,-500.0,0.00013698,2]
[335812764,1724505041523,-500.0,0.00013698,2]
[335812765,1724505041535,-500.0,0.00013698,2]
[335812766,1724505041545,-500.0,0.00013698,2]
[335812767,1724505041556,-193.80537047,0.00013698,2]
[335812768,1724505041568,-500.0,0.00013698,2]
[335812769,1724505041577,-501.67479403,0.00013698,2]
[335812770,1724505041587,-500.0,0.00013698,2]
[335812771,1724505041598,-416.90936469,0.00013698,2]
[335812772,1724505041609,-500.0,0.00013698,2]
[335812773,1724505041619,-500.0,0.00013698,2]
[335812774,1724505041630,-500.0,0.00013698,2]
[335812775,1724505041639,-500.0,0.00013698,2]
[335812776,1724505041650,-534.63057297,0.00013698,2]
[335812777,1724505041661,-500.0,0.00013698,2]
[335812778,1724505041670,-500.0,0.00013698,2]
[335812779,1724505041680,-500.0,0.00013698,2]
[335812780,1724505041689,-500.0,0.00013698,2]
[335812781,1724505041698,-500.0,0.00013698,2]
[335812782,1724505041708,-500.0,0.00013698,2]
[335812783,1724505041719,-500.0,0.00013698,2]
[335812784,1724505041729,-500.0,0.00013698,2]
[335812785,1724505041739,-820.96,0.00013698,2]
[335812786,1724505041751,-500.0,0.00013698,2]
[335812787,1724505041762,-500.0,0.00013698,2]
[335812788,1724505041772,-500.0,0.00013698,2]
[335812789,1724505041783,-500.0,0.00013698,2]
[335812790,1724505041794,-500.0,0.00013698,2]
[335812791,1724505041804,-500.0,0.00013698,2]
[335812792,1724505041814,-512.44720167,0.00013698,2]
[335812793,1724505041825,-500.0,0.00013698,2]
[335812794,1724505041836,-515.1272377,0.00013698,2]
[335812795,1724505041846,-500.0,0.00013698,2]
[335812796,1724505041856,-500.0,0.00013698,2]
[335812797,1724505041867,-500.0,0.00013698,2]
[335812798,1724505041878,-500.0,0.00013698,2]
[335812799,1724505041887,-500.0,0.00013698,2]
[335812800,1724505041896,-500.0,0.00013698,2]
[335812801,1724505041906,-500.0,0.00013698,2]
[335812802,1724505041915,-500.0,0.00013698,2]
[335812803,1724505041925,-500.0,0.00013698,2]
[335812804,1724505041936,-500.0,0.00013698,2]
[335812805,1724505041946,-500.0,0.00013698,2]
[335812806,1724505041959,-500.0,0.00013698,2]
[335812807,1724505041970,-500.0,0.00013698,2]
[335812808,1724505041980,-500.0,0.00013698,2]
[335812809,1724505041989,-500.0,0.00013698,2]
[335812810,1724505041998,-500.0,0.00013698,2]
[335812811,1724505042008,-500.0,0.00013698,2]
[335812812,1724505042017,-500.0,0.00013698,2]
[335812813,1724505042026,-500.0,0.00013698,2]
[335812814,1724505042038,-500.0,0.00013698,2]
[335812815,1724505042048,-613.11,0.00013698,2]
[335812816,1724505042057,-500.0,0.00013698,2]
[335812817,1724505042067,-500.0,0.00013698,2]
[335812818,1724505042076,-427.47475264,0.00013698,2]
[335812819,1724505042087,-300.12094391,0.00013698,2]
[335812820,1724505042096,-500.0,0.00013698,2]
[335812821,1724505042105,-717.33,0.00013698,2]
[335812822,1724505042115,-500.0,0.00013698,2]
[335812823,1724505042125,-516.55611504,0.00013698,2]
[335812824,1724505042134,-500.85815529,0.00013698,2]
[335812825,1724505042144,-500.42181622,0.00013698,2]
[335812826,1724505042154,-500.0,0.00013698,2]
[335812827,1724505042163,-500.0,0.00013698,2]
[335812828,1724505042172,-500.0,0.00013698,2]
[335812829,1724505042182,-1053.45,0.00013698,2]
[335812830,1724505042191,-500.0,0.00013698,2]
[335812831,1724505042201,-757.93,0.00013698,2]
[335812832,1724505042210,-500.0,0.00013698,2]
[335812833,1724505042220,-500.0,0.00013698,2]
[335812834,1724505042229,-500.0,0.00013698,2]
[335812835,1724505042239,-500.0,0.00013698,2]
[335812836,1724505042248,-500.0,0.00013698,2]
[335812837,1724505042258,-500.0,0.00013698,2]
[335812838,1724505042268,-500.0,0.00013698,2]
[335812839,1724505042278,-1860.98,0.00013698,2]
[335812840,1724505042287,-500.0,0.00013698,2]
[335812841,1724505042297,-500.0,0.00013698,2]
[335812842,1724505042306,-604.67,0.00013698,2]
[335812843,1724505042502,-500.0,0.00013698,2]
[335812844,1724505042512,-500.0,0.00013698,2]
[335812845,1724505042522,-1134.76,0.00013698,2]
[335812846,1724505042531,-500.0,0.00013698,2]
[335812847,1724505042540,-500.0,0.00013698,2]
[335812848,1724505042550,-500.0,0.00013698,2]
[335812849,1724505042559,-550.13,0.00013698,2]
[335812850,1724505042568,-698.09,0.00013698,2]
[335812851,1724505042577,-500.0,0.00013698,2]
[335812852,1724505042586,-500.0,0.00013698,2]
[335812853,1724505042595,-500.0,0.00013698,2]
[335812854,1724505042604,-306.44126062,0.00013698,2]
[335812855,1724505042613,-579.2,0.00013698,2]
[335812856,1724505042622,-500.0,0.00013698,2]
[335812857,1724505042631,-500.0,0.00013698,2]
[335812858,1724505042641,-500.0,0.00013698,2]
[335812859,1724505042651,-500.0,0.00013698,2]
[335812860,1724505042659,-500.0,0.00013698,2]
[335812861,1724505042669,-908.14,0.00013698,2]
[335812862,1724505042678,-260.0,0.00013698,2]
[335812863,1724505042687,-598.78,0.00013698,2]
[335812864,1724505042696,-875.86,0.00013698,2]
[335812865,1724505042705,-500.0,0.00013698,2]
[335812866,1724505042714,-500.0,0.00013698,2]
[335812867,1724505042723,-500.0,0.00013698,2]
[335812868,1724505042732,-788.24,0.00013698,2]
[335812869,1724505042741,-258.0,0.00013698,2]
[335812870,1724505042751,-500.0,0.00013698,2]
[335812871,1724505042760,-500.0,0.00013698,2]
[335812872,1724505042769,-500.0,0.00013698,2]
[335812873,1724505042779,-500.0,0.00013698,2]
[335812874,1724505042788,-500.0,0.00013698,2]
[335812875,1724505042798,-500.0,0.00013698,2]
[335812876,1724505042807,-500.0,0.00013698,2]
[335812877,1724505042816,-500.0,0.00013698,2]
[335812878,1724505042825,-582.6,0.00013698,2]
[335812879,1724505042835,-500.0,0.00013698,2]
[335812880,1724505042844,-500.0,0.00013698,2]
[335812881,1724505042853,-2685.33,0.00013698,2]
[335812882,1724505042863,-500.0,0.00013698,2]
[335812883,1724505042873,-500.0,0.00013698,2]
[335812884,1724505042882,-500.0,0.00013698,2]
[335812885,1724505042891,-500.0,0.00013698,2]
[335812886,1724505042900,-500.0,0.00013698,2]
[335812887,1724505042910,-770.59,0.00013698,2]
[335812888,1724505042919,-653.53,0.00013698,2]
[335812889,1724505042929,-500.0,0.00013698,2]
[335812890,1724505042939,-500.0,0.00013698,2]
[335812891,1724505042949,-500.0,0.00013698,2]
[335812892,1724505042961,-590.97,0.00013698,2]
[335812893,1724505042971,-500.0,0.00013698,2]
[335812894,1724505042980,-500.0,0.00013698,2]
[335812895,1724505042990,-500.97004959,0.00013698,2]
[335812896,1724505042999,-500.0,0.00013698,2]
[335812897,1724505043009,-538.41,0.00013698,2]
[335812898,1724505043018,-500.0,0.00013698,2]
[335812899,1724505043027,-500.0,0.00013698,2]
[335812900,1724505043040,-500.0,0.00013698,2]
[335812901,1724505043049,-500.0,0.00013698,2]
[335812902,1724505043059,-500.0,0.00013698,2]
[335812903,1724505043068,-1755.79,0.00013698,2]
[335812904,1724505043079,-500.0,0.00013698,2]
[335812905,1724505043089,-500.0,0.00013698,2]
[335812906,1724505043098,-500.0,0.00013698,2]
[335812907,1724505043109,-719.09,0.00013698,2]
[335812908,1724505043118,-500.0,0.00013698,2]
[335812909,1724505043127,-500.0,0.00013698,2]
[335812910,1724505043137,-500.0,0.00013698,2]
[335812911,1724505043146,-654.3,0.00013698,2]
[335812913,1724505043156,-774.65,0.00013698,2]
[335812914,1724505043165,-500.0,0.00013698,2]
[335812915,1724505043174,-500.0,0.00013698,2]
[335812916,1724505043184,-500.0,0.00013698,2]
[335812917,1724505043194,-500.0,0.00013698,2]
[335812918,1724505043205,-829.89,0.00013698,2]
[335812919,1724505043214,-150.0,0.00013698,2]
[335812920,1724505043223,-500.0,0.00013698,2]
[335812921,1724505043232,-536.7811588,0.00013698,2]
[335812922,1724505043241,-500.0,0.00013698,2]
[335812923,1724505043251,-500.0,0.00013698,2]
[335812925,1724505043260,-500.0,0.00013698,2]
[335812927,1724505043270,-500.0,0.00013698,2]
[335812929,1724505043279,-500.0,0.00013698,2]
[335812931,1724505043290,-500.0,0.00013698,2]
[335812932,1724505043299,-510.99,0.00013698,2]
[335812933,1724505043308,-500.0,0.00013698,2]
[335812934,1724505043317,-700.67,0.00013698,2]
[335812935,1724505043327,-500.0,0.00013698,2]
[335812936,1724505043337,-316.24143331,0.00013698,2]
[335812937,1724505043349,-159.93009355,0.00013698,2]
[335812938,1724505043360,-500.0,0.00013698,2]
[335812939,1724505043370,-894.25,0.00013698,2]
[335812940,1724505043379,-500.0,0.00013698,2]
[335812941,1724505043389,-534.06379751,0.00013698,2]
[335812942,1724505043398,-449.81063824,0.00013698,2]
[335812943,1724505043407,-500.0,0.00013698,2]
[335812944,1724505043416,-500.0,0.00013698,2]
[335812945,1724505043426,-500.0,0.00013698,2]
[335812946,1724505043435,-2472.71,0.00013698,2]
[335812947,1724505043445,-882.03,0.00013698,2]
[335812948,1724505043454,-500.0,0.00013698,2]
[335812949,1724505043463,-519.26,0.00013698,2]
[335812950,1724505043472,-746.04,0.00013698,2]
[335812951,1724505043481,-500.0,0.00013698,2]
[335812952,1724505043491,-500.0,0.00013698,2]
[335812953,1724505043501,-500.0,0.00013698,2]
[335812954,1724505043510,-500.0,0.00013698,2]
[335812955,1724505043519,-500.0,0.00013698,2]
[335812956,1724505043529,-641.81,0.00013698,2]
[335812957,1724505043538,-500.0,0.00013698,2]
[335812958,1724505043548,-707.93,0.00013698,2]
[335812959,1724505043557,-500.0,0.00013698,2]
[335812960,1724505043566,-523.95976346,0.00013698,2]
[335812961,1724505043575,-500.0,0.00013698,2]
[335812962,1724505043585,-841.86,0.00013698,2]
[335812963,1724505043595,-957.08,0.00013698,2]
[335812964,1724505043603,-500.0,0.00013698,2]
[335812965,1724505043612,-1377.51,0.00013698,2]
[335812966,1724505043622,-809.01,0.00013698,2]
[335812967,1724505043630,-500.0,0.00013698,2]
[335812968,1724505043640,-451.02923329,0.00013698,2]
[335812969,1724505043648,-500.0,0.00013698,2]
[335812970,1724505043658,-500.0,0.00013698,2]
[335812971,1724505043667,-746.53,0.00013698,2]
[335812972,1724505043677,-500.0,0.00013698,2]
[335812974,1724505043686,-500.0,0.00013698,2]
[335812976,1724505043695,-500.0,0.00013698,2]
[335812978,1724505043704,-500.0,0.00013698,2]
[335812980,1724505043714,-524.22806794,0.00013698,2]
[335812981,1724505043723,-595.2,0.00013698,2]
[335812983,1724505043732,-500.0,0.00013698,2]
[335812984,1724505043741,-500.0,0.00013698,2]
[335812986,1724505043751,-1196.55,0.00013698,2]
[335812988,1724505043761,-721.3,0.00013698,2]
[335812990,1724505043770,-500.0,0.00013698,2]
[335812992,1724505043779,-1558.13,0.00013698,2]
[335812994,1724505043789,-500.0,0.00013698,2]
[335812995,1724505043798,-500.0,0.00013698,2]
[335812996,1724505043808,-500.0,0.00013698,2]
[335812997,1724505043817,-501.78015045,0.00013698,2]
[335812998,1724505043828,-500.0,0.00013698,2]
[335812999,1724505043837,-500.0,0.00013698,2]
[335813000,1724505043846,-500.0,0.00013698,2]
[335813001,1724505043855,-500.0,0.00013698,2]
[335813002,1724505043865,-504.03413542,0.00013698,2]
[335813003,1724505043874,-500.0,0.00013698,2]
[335813004,1724505043884,-518.31460666,0.00013698,2]
[335813005,1724505043894,-500.0,0.00013698,2]
[335813006,1724505043903,-500.0,0.00013698,2]
[335813007,1724505043913,-500.0,0.00013698,2]
[335813008,1724505043922,-500.0,0.00013698,2]
[335813009,1724505043932,-500.0,0.00013698,2]
[335813010,1724505043941,-500.0,0.00013698,2]
[335813011,1724505043950,-500.0,0.00013698,2]
[335813012,1724505043960,-500.0,0.00013698,2]
[335813013,1724505043969,-500.0,0.00013698,2]
[335813014,1724505043978,-500.0,0.00013698,2]
[335813015,1724505043988,-500.0,0.00013698,2]
[335813016,1724505043998,-500.0,0.00013698,2]
[335813017,1724505044007,-500.0,0.00013698,2]
[335813018,1724505044017,-500.0,0.00013698,2]
[335813019,1724505044026,-500.0,0.00013698,2]
[335813020,1724505044037,-500.0,0.00013698,2]
[335813021,1724505044048,-500.0,0.00013698,2]
[335813022,1724505044057,-500.0,0.00013698,2]
[335813023,1724505044066,-500.0,0.00013698,2]
[335813024,1724505044077,-500.0,0.00013698,2]
[335813025,1724505044086,-500.0,0.00013698,2]
[335813026,1724505044096,-500.0,0.00013698,2]
[335813027,1724505044105,-447.60060409,0.00013698,2]
[335813028,1724505044116,-500.0,0.00013698,2]
[335813029,1724505044126,-665.59,0.00013698,2]
[335813030,1724505044135,-500.0,0.00013698,2]
[335813031,1724505044144,-568.52,0.00013698,2]
[335813032,1724505044154,-500.0,0.00013698,2]
[335813033,1724505044163,-500.0,0.00013698,2]
[335813034,1724505044173,-500.0,0.00013698,2]
[335813035,1724505044182,-500.0,0.00013698,2]
[335813037,1724505044192,-500.0,0.00013698,2]
[335813039,1724505044201,-537.4,0.00013698,2]
[335813040,1724505044211,-849.92,0.00013698,2]
[335813041,1724505044220,-500.0,0.00013698,2]
[335813042,1724505044230,-504.91863653,0.00013698,2]
[335813043,1724505044240,-512.71688621,0.00013698,2]
[335813044,1724505044250,-500.0,0.00013698,2]
[335813045,1724505044260,-500.0,0.00013698,2]
[335813046,1724505044270,-575.68528405,0.00013698,2]
[335813047,1724505044280,-753.41,0.00013698,2]
[335813048,1724505044289,-2598.04,0.00013698,2]
[335813049,1724505044299,-500.0,0.00013698,2]
[335813050,1724505044308,-904.3,0.00013698,2]
[335813051,1724505044318,-500.0,0.00013698,2]
[335813052,1724505044328,-1490.04,0.00013698,2]
[335813053,1724505044337,-500.0,0.00013698,2]
[335813054,1724505044347,-559.29,0.00013698,2]
[335813055,1724505044356,-2010.75,0.00013698,2]
[335813056,1724505044366,-500.0,0.00013698,2]
[335813057,1724505044376,-1316.64,0.00013698,2]
[335813058,1724505044387,-653.24,0.00013698,2]
[335813059,1724505044396,-997.19,0.00013698,2]
[335813060,1724505044406,-500.0,0.00013698,2]
[335813061,1724505044416,-500.0,0.00013698,2]
[335813062,1724505044427,-500.0,0.00013698,2]
[335813063,1724505044437,-502.08,0.00013698,2]
[335813064,1724505044448,-500.0,0.00013698,2]
[335813065,1724505044458,-500.0,0.00013698,2]
[335813066,1724505044467,-525.88,0.00013698,2]
[335813067,1724505044478,-500.0,0.00013698,2]
[335813068,1724505044488,-500.0,0.00013698,2]
[335813069,1724505044499,-695.32,0.00013698,2]
[335813070,1724505044510,-500.0,0.00013698,2]
[335813071,1724505044520,-940.72,0.00013698,2]
[335813072,1724505044531,-500.0,0.00013698,2]
[335813073,1724505044542,-836.16,0.00013698,2]
[335813074,1724505044552,-550.47,0.00013698,2]
[335813075,1724505044562,-500.0,0.00013698,2]
[335813076,1724505044572,-500.0,0.00013698,2]
[335813077,1724505044581,-500.0,0.00013698,2]
[335813078,1724505044591,-500.0,0.00013698,2]
[335813079,1724505044601,-500.0,0.00013698,2]
[335813080,1724505044611,-500.0,0.00013698,2]
[335813081,1724505044620,-500.0,0.00013698,2]
[335813082,1724505044629,-500.0,0.00013698,2]
[335813083,1724505044638,-1853.55,0.00013698,2]
[335813084,1724505044647,-500.0,0.00013698,2]
[335813085,1724505044656,-500.0,0.00013698,2]
[335813086,1724505044665,-500.0,0.00013698,2]
[335813087,1724505044674,-372.73170538,0.00013698,2]
[335813088,1724505044684,-500.0,0.00013698,2]
[335813089,1724505044693,-896.59,0.00013698,2]
[335813090,1724505044703,-500.0,0.00013698,2]
[335813091,1724505044712,-541.76,0.00013698,2]
[335813092,1724505044721,-1246.76,0.00013698,2]
[335813093,1724505044730,-500.0,0.00013698,2]
[335813094,1724505044742,-500.0,0.00013698,2]
[335813095,1724505044752,-500.0,0.00013698,2]
[335813096,1724505044763,-502.4865302,0.00013698,2]
[335813097,1724505044772,-1327.25,0.00013698,2]
[335813098,1724505044782,-500.0,0.00013698,2]
[335813099,1724505044791,-500.0,0.00013698,2]
[335813100,1724505044800,-500.0,0.00013698,2]
[335813101,1724505044810,-500.0,0.00013698,2]
[335813102,1724505044820,-1029.84,0.00013698,2]
[335813103,1724505044830,-500.0,0.00013698,2]
[335813104,1724505044840,-1121.57,0.00013698,2]
[335813105,1724505044850,-500.0,0.00013698,2]
[335813106,1724505044861,-500.0,0.00013698,2]
[335813107,1724505044870,-500.0,0.00013698,2]
[335813108,1724505044880,-1111.31,0.00013698,2]
[335813109,1724505044889,-500.0,0.00013698,2]
[335813110,1724505044899,-500.25966525,0.00013698,2]
[335813111,1724505044908,-500.0,0.00013698,2]
[335813112,1724505044918,-686.27,0.00013698,2]
[335813113,1724505044930,-1171.19,0.00013698,2]
[335813114,1724505044941,-315.43926399,0.00013698,2]
[335813115,1724505044951,-500.0,0.00013698,2]
[335813116,1724505044962,-851.71,0.00013698,2]
[335813117,1724505044971,-867.53,0.00013698,2]
[335813118,1724505044981,-500.0,0.00013698,2]
[335813119,1724505044991,-500.0,0.00013698,2]
[335813120,1724505045000,-500.0,0.00013698,2]
[335813121,1724505045010,-500.0,0.00013698,2]
[335813122,1724505045019,-500.0,0.00013698,2]
[335813123,1724505045028,-646.42,0.00013698,2]
[335813124,1724505045042,-500.0,0.00013698,2]
[335813125,1724505045052,-500.0,0.00013698,2]
[335813126,1724505045062,-500.0,0.00013698,2]
[335813127,1724505045072,-500.0,0.00013698,2]
[335813128,1724505045082,-500.0,0.00013698,2]
[335813129,1724505045091,-500.0,0.00013698,2]
[335813130,1724505045101,-500.0,0.00013698,2]
[335813131,1724505045112,-500.0,0.00013698,2]
[335813132,1724505045121,-500.0,0.00013698,2]
[335813133,1724505045130,-500.0,0.00013698,2]
[335813134,1724505045139,-500.0,0.00013698,2]
[335813135,1724505045149,-500.0,0.00013698,2]
[335813136,1724505045158,-542.60168054,0.00013698,2]
[335813137,1724505045167,-500.0,0.00013698,2]
[335813138,1724505045177,-500.0,0.00013698,2]
[335813139,1724505045187,-1421.71,0.00013698,2]
[335813140,1724505045196,-500.0,0.00013698,2]
[335813141,1724505045206,-500.0,0.00013698,2]
[335813142,1724505045215,-500.0,0.00013698,2]
[335813143,1724505045224,-500.0,0.00013698,2]
[335813144,1724505045233,-1692.92,0.00013698,2]
[335813145,1724505045242,-500.0,0.00013698,2]
[335813146,1724505045251,-1386.71,0.00013698,2]
[335813147,1724505045260,-585.54086166,0.00013698,2]
[335813148,1724505045270,-531.27393272,0.00013698,2]
[335813149,1724505045280,-500.0,0.00013698,2]
[335813150,1724505045289,-582.81026484,0.00013698,2]
[335813151,1724505045299,-500.0,0.00013698,2]
[335813152,1724505045308,-500.0,0.00013698,2]
[335813153,1724505045317,-500.0,0.00013698,2]
[335813154,1724505045327,-500.0,0.00013698,2]
[335813155,1724505045336,-681.29,0.00013698,2]
[335813156,1724505045346,-805.19,0.00013698,2]
[335813157,1724505045355,-1185.89,0.00013698,2]
[335813158,1724505045365,-500.0,0.00013698,2]
[335813159,1724505045374,-706.93,0.00013698,2]
[335813160,1724505045384,-500.0,0.00013698,2]
[335813161,1724505045393,-500.0,0.00013698,2]
[335813162,1724505045402,-500.0,0.00013698,2]
[335813163,1724505045412,-1898.67,0.00013698,2]
[335813164,1724505045422,-500.0,0.00013698,2]
[335813165,1724505045432,-500.0,0.00013698,2]
[335813166,1724505045441,-1087.23,0.00013698,2]
[335813167,1724505045450,-1512.79,0.00013698,2]
[335813168,1724505045460,-1440.22,0.00013698,2]
[335813169,1724505045470,-1943.67,0.00013698,2]
[335813170,1724505045479,-500.0,0.00013698,2]
[335813171,1724505045488,-501.35155916,0.00013698,2]
[335813172,1724505045498,-500.0,0.00013698,2]
[335813173,1724505045507,-500.0,0.00013698,2]
[335813174,1724505045516,-524.10641745,0.00013698,2]
[335813175,1724505045525,-500.0,0.00013698,2]
[335813176,1724505045534,-500.0,0.00013698,2]
[335813177,1724505045543,-500.0,0.00013698,2]
[335813178,1724505045553,-1133.55,0.00013698,2]
[335813179,1724505045562,-500.0,0.00013698,2]
[335813180,1724505045571,-500.0,0.00013698,2]
[335813181,1724505045582,-500.0,0.00013698,2]
[335813182,1724505045593,-500.0,0.00013698,2]
[335813183,1724505045604,-500.0,0.00013698,2]
[335813184,1724505045614,-753.36,0.00013698,2]
[335813185,1724505045623,-500.0,0.00013698,2]
[335813186,1724505045632,-279.85197933,0.00013698,2]
[335813187,1724505045642,-661.68,0.00013698,2]
[335813188,1724505045652,-500.0,0.00013698,2]
[335813189,1724505045663,-500.0,0.00013698,2]
[335813190,1724505045672,-529.89,0.00013698,2]
[335813191,1724505045680,-785.72,0.00013698,2]
[335813192,1724505045690,-1172.23,0.00013698,2]
[335813193,1724505045699,-601.3,0.00013698,2]
[335813194,1724505045708,-253.09911784,0.00013698,2]
[335813195,1724505045717,-1234.79,0.00013698,2]
[335813196,1724505045726,-500.0,0.00013698,2]
[335813197,1724505045736,-619.84,0.00013698,2]